fUSD/lending_fUSD_20241208
["ID","MTS","AMOUNT","RATE_DAILY","PERIOD"]
[344638657,1733651438884,-500.0,0.00022999,2]
[344638658,1733651438894,-529.00244045,0.00022999,2]
[344638659,1733651438903,-500.0,0.00022999,2]
[344638660,1733651438912,-500.0,0.00022999,2]
[344638661,1733651438921,-500.0,0.00022999,2]
[344638662,1733651438931,-500.0,0.00022999,2]
[344638663,1733651438941,-500.0,0.00022999,2]
[344638664,1733651438950,-500.0,0.00022999,2]
[344638665,1733651438959,-169.35,0.00022999,2]
[344638666,1733651438969,-1250.16,0.00022999,2]
[344638667,1733651438978,-1250.16,0.00022999,2]
[344638668,1733651438988,-1250.16,0.00022999,2]
[344638669,1733651438997,-1250.16,0.00022999,2]
[344638670,1733651439006,-1250.16,0.00022999,2]
[344638671,1733651439017,-1250.16,0.00022999,2]
[344638672,1733651439027,-1250.16,0.00022999,2]
[344638673,1733651439036,-1250.16,0.00022999,2]
[344638674,1733651439045,-1250.16,0.00022999,2]
[344638675,1733651439057,-1250.16,0.00022999,2]
[344638676,1733651439066,-1250.16,0.00022999,2]
[344638677,1733651439076,-1250.16,0.00022999,2]
[344638678,1733651439086,-1250.16,0.00022999,2]
[344638679,1733651439095,-1250.16,0.00022999,2]
[344638680,1733651439104,-1250.16,0.00022999,2]
[344638681,1733651439113,-1250.16,0.00022999,2]
[344638682,1733651439122,-1250.16,0.00022999,2]
[344638683,1733651439131,-1250.16,0.00022999,2]
[344638684,1733651439140,-1250.16,0.00022999,2]
[344638685,1733651439149,-1250.16,0.00022999,2]
[344638686,1733651439158,-1250.16,0.00022999,2]
[344638687,1733651439168,-1250.16,0.00022999,2]
[344638688,1733651439178,-1250.16,0.00022999,2]
[344638689,1733651439187,-1250.29560159,0.00022999,2]
[344638690,1733651439196,-500.0,0.00022999,2]
[344638691,1733651439205,-500.0,0.00022999,2]
[344638692,1733651439214,-500.0,0.00022999,2]
[344638693,1733651439224,-500.0,0.00022999,2]
[344638694,1733651439234,-500.0,0.00022999,2]
[344638695,1733651439243,-332.34,0.00022999,2]
[344638696,1733651439253,-500.0,0.00022999,2]
[344638697,1733651439262,-500.0,0.00022999,2]
[344638698,1733651439272,-500.0,0.00022999,2]
[344638699,1733651439281,-500.0,0.00022999,2]
[344638700,1733651439291,-500.0,0.00022999,2]
[344638701,1733651439300,-500.0,0.00022999,2]
[344638702,1733651439313,-500.0,0.00022999,2]
[344638703,1733651439322,-500.0,0.00022999,2]
[344638704,1733651439331,-500.0,0.00022999,2]
[344638705,1733651439341,-505.45001303,0.00022999,2]
[344638706,1733651439351,-500.0,0.00022999,2]
[344638707,1733651439360,-644.0800913,0.00022999,2]
[344638708,1733651439369,-500.0,0.00022999,2]
[344638709,1733651439378,-500.0,0.00022999,2]
[344638710,1733651439391,-500.0,0.00022999,2]
[344638711,1733651439401,-500.0,0.00022999,2]
[344638712,1733651439410,-267.92,0.00022999,2]
[344638713,1733651439419,-500.0,0.00022999,2]
[344638714,1733651439429,-500.0,0.00022999,2]
[344638715,1733651439438,-500.0,0.00022999,2]
[344638716,1733651439447,-500.0,0.00022999,2]
[344638717,1733651439456,-500.0,0.00022999,2]
[344638718,1733651439465,-500.0,0.00022999,2]
[344638719,1733651439474,-500.0,0.00022999,2]
[344638720,1733651439484,-344.28,0.00022999,2]
[344638721,1733651439494,-500.0,0.00022999,2]
[344638722,1733651439503,-500.0,0.00022999,2]
[344638723,1733651439512,-500.0,0.00022999,2]
[344638724,1733651439521,-500.0,0.00022999,2]
[344638725,1733651439531,-500.0,0.00022999,2]
[344638726,1733651439540,-500.0,0.00022999,2]
[344638727,1733651439549,-512.66963845,0.00022999,2]
[344638728,1733651439562,-274.27433236,0.00022999,2]
[344638729,1733651439571,-500.0,0.00022999,2]
[344638730,1733651439581,-500.0,0.00022999,2]
[344638731,1733651439590,-500.0,0.00022999,2]
[344638732,1733651439600,-500.0,0.00022999,2]
[344638733,1733651439609,-500.0,0.00022999,2]
[344638734,1733651439619,-500.0,0.00022999,2]
[344638735,1733651439628,-500.0,0.00022999,2]
[344638736,1733651439637,-500.0,0.00022999,2]
[344638737,1733651439646,-500.0,0.00022999,2]
[344638738,1733651439655,-500.0,0.00022999,2]
[344638739,1733651439665,-500.0,0.00022999,2]
[344638740,1733651439675,-500.0,0.00022999,2]
[344638741,1733651439684,-500.0,0.00022999,2]
[344638743,1733651439693,-500.0,0.00022999,2]
[344638745,1733651439702,-500.0,0.00022999,2]
[344638746,1733651439712,-500.0,0.00022999,2]
[344638747,1733651439721,-500.0,0.00022999,2]
[344638748,1733651439730,-500.0,0.00022999,2]
[344638749,1733651439739,-645.1057383,0.00022999,2]
[344638750,1733651439749,-500.0,0.00022999,2]
[344638751,1733651439758,-500.0,0.00022999,2]
[344638752,1733651439768,-500.0,0.00022999,2]
[344638753,1733651439777,-500.0,0.00022999,2]
[344638754,1733651439787,-643.95,0.00022999,2]
[344638755,1733651439796,-352.00091573,0.00022999,2]
[344638756,1733651439808,-500.0,0.00022999,2]
[344638757,1733651439817,-423.61079538,0.00022999,2]
[344638758,1733651439827,-500.0,0.00022999,2]
[344638759,1733651439837,-500.0,0.00022999,2]
[344638760,1733651439846,-500.0,0.00022999,2]
[344638762,1733651439856,-500.0,0.00022999,2]
[344638763,1733651439865,-151.32,0.00022999,2]
[344638764,1733651439874,-500.0,0.00022999,2]
[344638765,1733651439884,-202.09,0.00022999,2]
[344638766,1733651439894,-500.0,0.00022999,2]
[344638767,1733651439904,-500.0,0.00022999,2]
[344638768,1733651439914,-500.0,0.00022999,2]
[344638769,1733651439923,-500.0,0.00022999,2]
[344638770,1733651439932,-500.0,0.00022999,2]
[344638771,1733651439942,-500.0,0.00022999,2]
[344638772,1733651439951,-208.05,0.00022999,2]
[344638773,1733651439961,-500.0,0.00022999,2]
[344638774,1733651439970,-500.0,0.00022999,2]
[344638775,1733651439979,-549.27,0.00022999,2]
[344638776,1733651439989,-500.0,0.00022999,2]
[344638777,1733651439999,-500.0,0.00022999,2]
[344638778,1733651440008,-500.0,0.00022999,2]
[344638779,1733651440018,-500.0,0.00022999,2]
[344638780,1733651440028,-500.0,0.00022999,2]
[344638781,1733651440038,-246.66,0.00022999,2]
[344638782,1733651440047,-627.5,0.00022999,2]
[344638783,1733651440060,-500.0,0.00022999,2]
[344638784,1733651440074,-500.0,0.00022999,2]
[344638785,1733651440083,-500.0,0.00022999,2]
[344638786,1733651440093,-500.0,0.00022999,2]
[344638787,1733651440103,-500.0,0.00022999,2]
[344638788,1733651440113,-500.0,0.00022999,2]
[344638789,1733651440123,-500.0,0.00022999,2]
[344638790,1733651440143,-500.0,0.00022999,2]
[344638791,1733651440153,-500.0,0.00022999,2]
[344638792,1733651440165,-605.28,0.00022999,2]
[344638793,1733651440174,-500.0,0.00022999,2]
[344638794,1733651440184,-500.0,0.00022999,2]
[344638795,1733651440193,-500.0,0.00022999,2]
[344638796,1733651440202,-500.0,0.00022999,2]
[344638797,1733651440211,-221.88,0.00022999,2]
[344638798,1733651440222,-500.0,0.00022999,2]
[344638799,1733651440235,-500.0,0.00022999,2]
[344638807,1733651440399,-500.0,0.00022999,2]
[344638809,1733651440409,-500.0,0.00022999,2]
[344638811,1733651440418,-475.6,0.00022999,2]
[344638813,1733651440427,-500.0,0.00022999,2]
[344638815,1733651440436,-500.0,0.00022999,2]
[344638817,1733651440445,-500.0,0.00022999,2]
[344638819,1733651440455,-500.0,0.00022999,2]
[344638821,1733651440464,-585.28,0.00022999,2]
[344638823,1733651440473,-500.0,0.00022999,2]
[344638825,1733651440483,-500.0,0.00022999,2]
[344638827,1733651440492,-500.0,0.00022999,2]
[344638829,1733651440501,-500.0,0.00022999,2]
[344638831,1733651440510,-500.0,0.00022999,2]
[344638833,1733651440519,-500.0,0.00022999,2]
[344638835,1733651440529,-500.0,0.00022999,2]
[344638836,1733651440538,-500.0,0.00022999,2]
[344638837,1733651440548,-500.0,0.00022999,2]
[344638838,1733651440559,-320.58,0.00022999,2]
[344638839,1733651440567,-500.0,0.00022999,2]
[344638840,1733651440576,-500.0,0.00022999,2]
[344638841,1733651440586,-500.0,0.00022999,2]
[344638842,1733651440595,-500.0,0.00022999,2]
[344638843,1733651440604,-500.0,0.00022999,2]
[344638844,1733651440613,-1000.0,0.00022999,5]
[344638845,1733651440622,-435.76,0.00022999,2]
[344638846,1733651440632,-1000.0,0.00022999,5]
[344638847,1733651440641,-1000.0,0.00022999,5]
[344638848,1733651440650,-1000.0,0.00022999,5]
[344638849,1733651440659,-1000.0,0.00022999,5]
[344638850,1733651440668,-521.47,0.00022999,5]
[344638851,1733651440677,-500.0,0.00022999,2]
[344638852,1733651440686,-500.0,0.00022999,2]
[344638853,1733651440695,-500.0,0.00022999,2]
[344638854,1733651440705,-500.0,0.00022999,2]
[344638855,1733651440714,-500.0,0.00022999,2]
[344638856,1733651440724,-500.0,0.00022999,2]
[344638857,1733651440733,-500.0,0.00022999,2]
[344638858,1733651440742,-500.0,0.00022999,2]
[344638859,1733651440751,-500.0,0.00022999,2]
[344638860,1733651440760,-500.0,0.00022999,2]
[344638861,1733651440770,-500.0,0.00022999,2]
[344638862,1733651440779,-366.96,0.00022999,2]
[344638863,1733651440789,-865.0,0.00023,2]
[344638864,1733651440798,-2037.1337366,0.00023,2]
[344638865,1733651440809,-30395579.42285031,0.00023,3]
[344638866,1733651440824,-3239.89044506,0.00023,3]
[344638867,1733651440835,-2691.39943017,0.00023,3]
[344638868,1733651440850,-7900.0,0.00023,3]
[344638869,1733651440967,-2034.52399846,0.00023,3]
[344638870,1733651440978,-671.06999991,0.00023,3]
[344638871,1733651440990,-1942.37721319,0.00023,3]
[344638872,1733651441011,-94790.84398313,0.00023,3]
[344638873,1733651441024,-1200.0015883,0.00023,3]
[344638874,1733651441035,-828.75769103,0.00023,3]
[344638875,1733651441045,-650.00002,0.00023,3]
[344638876,1733651441058,-1650.81092424,0.00023,3]
[344638877,1733651441070,-731.31115522,0.00023,3]
[344638878,1733651441081,-1805.0000005,0.00023,3]
[344638879,1733651441092,-656.14,0.00023,3]
[344638884,1733651443034,-1509.09021663,0.00023,3]
[344638885,1733651443046,-637.35010209,0.00023,3]
[344638886,1733651443058,-2533.38344149,0.00023,3]
[344638887,1733651443159,-1164.90682513,0.00023,3]
[344638888,1733651443170,-595.7459786,0.00023,3]
[344638889,1733651443183,-1254.2,0.00023,3]
[344638890,1733651443194,-4036.15551084,0.00023,3]
[344638891,1733651443205,-4998.62700891,0.00023,3]
[344638892,1733651443216,-13299.81253205,0.00023,3]
[344638893,1733651443227,-5416.70779277,0.00023,3]
[344638894,1733651443238,-5437.92948325,0.00023,3]
[344638895,1733651443248,-382.12258582,0.00023,3]
[344638896,1733651443281,-1104.39647808,0.00023,3]
[344638897,1733651443292,-16238.73991502,0.00023,3]
[344638898,1733651443304,-12122.43874506,0.00023,3]
[344638899,1733651443318,-1128.06641355,0.00023,3]
[344638900,1733651443329,-6542.86725718,0.00023,3]
[344638901,1733651443340,-15020.92654809,0.00023,3]
[344638902,1733651443353,-833.87987711,0.00023,3]
[344638903,1733651443370,-1711.67218462,0.00023,3]
[344638904,1733651443382,-361.45361106,0.00023,3]
[344638905,1733651443491,-369.12270208,0.00023,3]
[344638906,1733651443501,-1558.32946893,0.00023,3]
[344638907,1733651443513,-273.88727203,0.00023,3]
[344638908,1733651443524,-4791.17830158,0.00023,3]
[344638909,1733651443534,-1881.12,0.00023,3]
[344638910,1733651443545,-1146.82366185,0.00023,3]
[344638920,1733651446037,-150.0,0.00022973,2]
[344638921,1733651446048,-872.0,0.00023,2]
[344638922,1733651446059,-1864.749998,0.00023,3]
[344638923,1733651446070,-2334.786975,0.00023,3]
[344638924,1733651446082,-122083.966798,0.00023,3]
[344638925,1733651446093,-277.38,0.00023,3]
[344638926,1733651446103,-25179.2,0.00023,3]
[344638927,1733651446114,-387.7317709,0.00023,3]
[344638928,1733651446125,-1323.01196985,0.00023,3]
[344638929,1733651446136,-2654.94895016,0.00023,3]
[344638930,1733651446157,-1846.40381386,0.00023,3]
[344638931,1733651446168,-370.80979092,0.00023,3]
[344638932,1733651446181,-898.99522388,0.00023,3]
[344638933,1733651446270,-2076.72668043,0.00023,3]
[344638934,1733651446281,-1055.28199659,0.00023,3]
[344638935,1733651446292,-2009.13156047,0.00023,3]
[344638936,1733651446304,-418.18435819,0.00023,3]
[344638937,1733651446317,-1005.53105948,0.00023,3]
[344638938,1733651446328,-3671.2053238,0.00023,3]
[344638939,1733651446339,-2214.18524743,0.00023,3]
[344638940,1733651446351,-2506.35000633,0.00023,3]
[344638941,1733651466146,259.83597505,0.00014976,2]
[344638942,1733651466616,259.83597505,0.00014995,2]
[344638943,1733651467044,259.83597505,0.00014972,2]
[344638944,1733651467314,259.83597505,0.00014984,2]
[344638945,1733651467625,259.83597505,0.00014987,2]
[344638946,1733651467915,259.83597505,0.00014997,2]
[344638948,1733651525683,200.0,0.00014984,2]
[344638949,1733651525818,200.0,0.00015,2]
[344638950,1733651526142,200.0,0.00014964,2]
[344638951,1733651526460,200.0,0.00014972,2]
[344638952,1733651526758,200.0,0.0001496,2]
[344638953,1733651527078,200.0,0.00014991,2]
[344638954,1733651583589,200.0,0.00014962,2]
[344638955,1733651583894,200.0,0.00014988,2]
[344638956,1733651584173,200.0,0.00014979,2]
[344638957,1733651584448,200.0,0.00014961,2]
[344638958,1733651584733,200.0,0.00014998,2]
[344638959,1733651585262,200.0,0.00014984,2]
[344638961,1733651644767,200.0,0.00014966,2]
[344638962,1733651645044,200.0,0.00014958,2]
[344638963,1733651645417,200.0,0.00014957,2]
[344638964,1733651645805,200.0,0.00014965,2]
[344638965,1733651646120,200.0,0.00014959,2]
[344638966,1733651646441,200.0,0.00014982,2]
[344638969,1733651705070,200.0,0.00014964,2]
[344638970,1733651705378,200.0,0.0001498,2]
[344638971,1733651705652,200.0,0.00014998,2]
[344638972,1733651705967,200.0,0.00014961,2]
[344638973,1733651706409,200.0,0.00014988,2]
[344639020,1733652632177,-796.69,0.00019665,2]
[344639021,1733652632187,-2568.5281003,0.0002,5]
[344639022,1733652632197,-199.999999,0.0002,5]
[344639023,1733652632207,-373.7169007,0.00021325,2]
[344639024,1733652632218,-1845.6630993,0.00021325,2]
[344639025,1733652632228,-200.0,0.00021327,2]
[344639026,1733652632237,-300.0,0.0002137,2]
[344639027,1733652632247,-1500.0,0.00021371,2]
[344639028,1733652632257,-848.35854556,0.00021383,2]
[344639029,1733652632268,-1689.57145444,0.00021383,2]
[344639030,1733652632277,-275.56,0.00021455,2]
[344639031,1733652632287,-250.0,0.00021461,2]
[344639032,1733652632297,-1000.0,0.00021487,2]
[344639033,1733652632307,-150.0,0.00021506,2]
[344639034,1733652632317,-250.0,0.00021511,2]
[344639035,1733652632326,-250.0,0.00021583,2]
[344639036,1733652632335,-364.83286604,0.00021585,2]
[344639037,1733652632345,-170.36,0.00021587,2]
[344639038,1733652632356,-165.89,0.00021615,2]
[344639039,1733652632365,-168.41,0.0002175,2]
[344639040,1733652632375,-355.39,0.00021754,2]
[344639041,1733652632384,-161.832,0.0002185,2]
[344639042,1733652632394,-159.01,0.00021876,2]
[344639043,1733652632403,-200.0,0.000219,2]
[344639044,1733652632413,-367.99,0.0002191,30]
[344639045,1733652632422,-796.69,0.00021929,2]
[344639046,1733652632432,-506.35,0.00021947,2]
[344639047,1733652632441,-168.03,0.00021959,2]
[344639048,1733652632451,-200.0,0.00021959,2]
[344639049,1733652632460,-356.91,0.00021959,2]
[344639050,1733652632470,-1879.17367952,0.00021959,2]
[344639051,1733652632481,-4458.025,0.00021959,2]
[344639052,1733652632492,-272.72621711,0.00021959,2]
[344639053,1733652632507,-627.54510337,0.00021959,2]
[344639054,1733652632517,-200.0,0.00022,2]
[344639055,1733652632527,-150.0,0.000225,120]
[344639056,1733652632536,-257.87828163,0.000225,2]
[344639057,1733652632553,-430.12171837,0.000225,2]
[344639058,1733652632563,-166.68,0.00022716,2]
[344639059,1733652632572,-5000.00000001,0.0002279,30]
[344639060,1733652632581,-5000.0,0.0002279,2]
[344639061,1733652632591,-150.0,0.00022898,3]
[344639062,1733652632600,-150.0,0.00022898,3]
[344639063,1733652632609,-150.0,0.00022898,2]
[344639064,1733652632619,-150.0,0.00022898,2]
[344639065,1733652632628,-150.0,0.00022899,120]
[344639067,1733652632637,-1444.94,0.00022899,2]
[344639069,1733652632652,-179.98417436,0.00022899,2]
[344639071,1733652632661,-11200.33144223,0.000229,2]
[344639073,1733652632673,-18242.62585123,0.000229,2]
[344639075,1733652632683,-2550.7967,0.000229,2]
[344639077,1733652632693,-2065.92221175,0.000229,2]
[344639079,1733652632702,-200.22,0.00022934,2]
[344639081,1733652632711,-1000.0,0.00022953,2]
[344639084,1733652632722,-601.0,0.00022959,2]
[344639086,1733652632731,-26790.26415359,0.00022959,2]
[344639090,1733652632753,-951.66,0.00022959,2]
[344639092,1733652632763,-659.66527736,0.00022959,2]
[344639094,1733652632774,-23142.41056905,0.00022959,2]
[344639095,1733652632783,-150.0,0.00022973,2]
[344639096,1733652632794,-3761.0,0.00022973,2]
[344639097,1733652632803,-323.32000209,0.00022973,2]
[344639098,1733652632815,-5641.67999791,0.00022973,2]
[344639099,1733652632824,-150.0,0.00022973,2]
[344639100,1733652632833,-832.0790231,0.00022993,2]
[344639101,1733652632842,-689.8719284,0.00022993,2]
[344639102,1733652632851,-834.4913496,0.00022993,2]
[344639103,1733652633023,-555.06,0.00022999,2]
[344639104,1733652633033,-625.0,0.00022999,2]
[344639105,1733652633044,-625.0,0.00022999,2]
[344639106,1733652633053,-625.0,0.00022999,2]
[344639107,1733652633063,-625.0,0.00022999,2]
[344639108,1733652633072,-625.0,0.00022999,2]
[344639109,1733652633082,-625.0,0.00022999,2]
[344639110,1733652633092,-625.0,0.00022999,2]
[344639111,1733652633101,-625.0,0.00022999,2]
[344639112,1733652633111,-625.0,0.00022999,2]
[344639113,1733652633120,-625.0,0.00022999,2]
[344639114,1733652633130,-625.0,0.00022999,2]
[344639115,1733652633140,-625.0,0.00022999,2]
[344639116,1733652633149,-625.0,0.00022999,2]
[344639117,1733652633159,-625.0,0.00022999,2]
[344639118,1733652633168,-625.0,0.00022999,2]
[344639119,1733652633178,-625.0,0.00022999,2]
[344639120,1733652633187,-625.0,0.00022999,2]
[344639121,1733652633197,-625.0,0.00022999,2]
[344639122,1733652633206,-625.0,0.00022999,2]
[344639123,1733652633215,-625.0,0.00022999,2]
[344639124,1733652633225,-625.0,0.00022999,2]
[344639125,1733652633235,-625.0,0.00022999,2]
[344639126,1733652633244,-625.0,0.00022999,2]
[344639127,1733652633254,-625.0,0.00022999,2]
[344639128,1733652633263,-2118.41,0.00022999,2]
[344639129,1733652633272,-2118.41,0.00022999,2]
[344639130,1733652633282,-2118.41,0.00022999,2]
[344639131,1733652633291,-2118.41,0.00022999,2]
[344639132,1733652633302,-2118.41,0.00022999,2]
[344639133,1733652633313,-2118.41,0.00022999,2]
[344639134,1733652633322,-2118.41,0.00022999,2]
[344639135,1733652633332,-2118.41,0.00022999,2]
[344639136,1733652633342,-2118.41,0.00022999,2]
[344639137,1733652633351,-2118.41,0.00022999,2]
[344639138,1733652633360,-2118.41,0.00022999,2]
[344639139,1733652633369,-2118.41,0.00022999,2]
[344639140,1733652633379,-2118.41,0.00022999,2]
[344639141,1733652633389,-2118.41,0.00022999,2]
[344639142,1733652633399,-2118.41,0.00022999,2]
[344639143,1733652633408,-2118.41,0.00022999,2]
[344639144,1733652633417,-2118.41,0.00022999,2]
[344639145,1733652633427,-2118.41,0.00022999,2]
[344639146,1733652633437,-2118.41,0.00022999,2]
[344639147,1733652633446,-2118.41,0.00022999,2]
[344639148,1733652633455,-2118.41,0.00022999,2]
[344639149,1733652633465,-2118.41,0.00022999,2]
[344639150,1733652633474,-2118.41,0.00022999,2]
[344639151,1733652633484,-2118.61,0.00022999,2]
[344639152,1733652633493,-566.2,0.00022999,2]
[344639153,1733652633503,-393.45144093,0.00022999,2]
[344639154,1733652633512,-484.99615939,0.00022999,2]
[344639155,1733652633521,-500.0,0.00022999,2]
[344639156,1733652633531,-500.0,0.00022999,2]
[344639157,1733652633540,-500.0,0.00022999,2]
[344639158,1733652633552,-290.02,0.00022999,2]
[344639159,1733652633562,-983.0,0.00023,2]
[344639160,1733652633571,-158772.65285806,0.00023,2]
[344639161,1733652633581,-2716.17831548,0.00023,2]
[344639162,1733652633590,-6898.04862801,0.00023,2]
[344639163,1733652633600,-100014.0,0.00023,3]
[344639164,1733652633610,-150.0,0.00023,2]
[344639165,1733652633619,-268688.50179032,0.00023,3]
[344639166,1733652633632,-428644.6425,0.00023,3]
[344639191,1733652638247,-7583.02195306,0.00023,3]
[344639198,1733652638568,-21679.9717253,0.00023,3]
[344639200,1733652638579,-1909.4832999,0.00023,3]
[344639202,1733652638591,-1005.49424066,0.00023,3]
[344639205,1733652638602,-2725.57775401,0.00023,3]
[344639207,1733652638613,-2869.0292601,0.00023,3]
[344639209,1733652638624,-1885.33762586,0.00023,3]
[344639211,1733652638635,-12759.99149186,0.00023,3]
[344639213,1733652638647,-1890.40901418,0.00023,3]
[344639216,1733652638663,-16192.19005334,0.00023,3]
[344639218,1733652638674,-8490748.04706347,0.00023,3]
[344639220,1733652638683,-895.53966645,0.00023,2]
[344639222,1733652638692,-202.3,0.00023,2]
[344639224,1733652638702,-3246.0,0.00023,2]
[344639226,1733652638711,-2372.53,0.00023,3]
[344639227,1733652638720,-150.0,0.00023,2]
[344639229,1733652638730,-1389.0,0.00023,3]
[344639231,1733652638740,-9973.48804529,0.00023,7]
[344639233,1733652638749,-2110.0,0.00023,2]
[344639235,1733652638758,-3000.0,0.00023,2]
[344639237,1733652638767,-237.82,0.00023,3]
[344639239,1733652638776,-150.0,0.00023,2]
[344639241,1733652638785,-5000.000001,0.00023,2]
[344639243,1733652638794,-4968.0,0.00023,2]
[344639245,1733652638807,-5000.0,0.00023,2]
[344639247,1733652638817,-15231.34718934,0.00023,2]
[344639249,1733652638826,-500.0,0.00023,2]
[344639251,1733652638835,-500.0,0.00023,30]
[344639253,1733652638844,-500.0,0.00023,2]
[344639255,1733652638853,-500.0,0.00023,30]
[344639257,1733652638865,-500.0,0.00023,2]
[344639258,1733652638875,-500.0,0.00023,30]
[344639259,1733652638884,-500.0,0.00023,30]
[344639260,1733652638893,-500.0,0.00023,2]
[344639261,1733652638902,-500.0,0.00023,30]
[344639262,1733652638911,-500.0,0.00023,2]
[344639263,1733652638920,-500.0,0.00023,30]
[344639264,1733652638929,-500.0,0.00023,2]
[344639265,1733652638938,-500.0,0.00023,30]
[344639266,1733652638947,-500.0,0.00023,2]
[344639267,1733652638956,-500.0,0.00023,30]
[344639268,1733652638966,-500.0,0.00023,2]
[344639269,1733652638976,-500.0,0.00023,30]
[344639270,1733652638985,-500.0,0.00023,2]
[344639271,1733652638995,-515.97413769,0.00023,30]
[344639272,1733652639005,-600.96633549,0.00023,2]
[344639273,1733652639014,-182.08583195,0.00023,4]
[344639274,1733652639024,-150.0,0.00023,4]
[344639275,1733652639033,-262.3082891,0.00023,4]
[344639276,1733652639042,-168.77789691,0.00023,4]
[344639277,1733652639053,-150.0,0.00023,4]
[344639278,1733652639063,-150.0,0.00023,4]
[344639279,1733652639072,-214.87833491,0.00023,4]
[344639280,1733652639081,-150.0,0.00023,4]
[344639281,1733652639091,-273.85860361,0.00023,4]
[344639282,1733652639100,-150.0,0.00023,4]
[344639283,1733652639110,-158.0,0.00023,8]
[344639284,1733652639119,-158.0,0.00023,8]
[344639285,1733652639128,-150.0,0.00023,4]
[344639286,1733652639138,-365.0,0.00023,2]
[344639287,1733652639148,-150.0,0.00023,4]
[344639288,1733652639157,-67148601.05479199,0.00023,3]
[344639292,1733652640118,-2174.12999991,0.00023,3]
[344639293,1733652640252,-953.0,0.00023,2]
[344639294,1733652640262,-215.93211619,0.00023,3]
[344639295,1733652640273,-662.283,0.00023,3]
[344639296,1733652640285,-9149.17280252,0.00023,3]
[344639297,1733652640400,-32428.17581392,0.00023,3]
[344639298,1733652640450,-550.621079,0.00023,3]
[344639299,1733652640492,-606.24934393,0.00023,3]
[344639300,1733652640530,-2495.1976765,0.00023,3]
[344639314,1733652643297,-76602.48124556,0.00023,3]
[344639315,1733652643310,-1924.93051653,0.00023,3]
[344639316,1733652643481,-3041.34265475,0.00023,3]
[344639317,1733652643492,-2964.70656456,0.00023,3]
[344639318,1733652643504,-1308.78091707,0.00023,3]
[344639319,1733652643516,-1436.55204815,0.00023,3]
[344639320,1733652643526,-3235.27352119,0.00023,3]
[344639321,1733652643537,-11970.56398994,0.00023,3]
[344639322,1733652643654,-1490.2060292,0.00023,3]
[344639323,1733652643669,-295.8260175,0.00023,3]
[344639324,1733652643680,-164170.586034,0.00023,3]
[344639325,1733652643691,-6720.000132,0.00023,3]
[344639326,1733652643708,-9886.0,0.00023,3]
[344639345,1733652646166,-8151.225375,0.00023,3]
[344639346,1733652646178,-5839.250002,0.00023,3]
[344639347,1733652646190,-816.3640822,0.00023,3]
[344639348,1733652646290,-4833.79971318,0.00023,3]
[344639349,1733652646400,-19664.99999992,0.00023,3]
[344639350,1733652646412,-4994.59999,0.00023,3]
[344639351,1733652646423,-762.16544877,0.00023,3]
[344639352,1733652646436,-887687.0137661,0.00023,3]
[344639353,1733652664094,608.71796269,0.00014966,2]